[Event "XLV Sevilla Open 2020"]
[Site "Sevilla"]
[Date "2020.01.10"]
[Round "1.8"]
[White "Shariyazdanov, Andrey"]
[Black "Badier Carave, David Olivier"]
[Result "1-0"]
[ECO "A56"]
[WhiteElo "2519"]
[BlackElo "1772"]
[Annotator "RC"]
[PlyCount "49"]
[EventDate "2020.01.05"]
[EventType "swiss"]
[EventCountry "ESP"]
[SourceTitle "playchess.com"]
[Source "ChessBase"]
[SourceQuality "1"]
[TimeControl "5400+30"]

1. d4 {[%emt 0:00:00]} Nf6 {[%emt 0:00:00]} 2. c4 {[%emt 0:00:00]} c5 {[%emt 0:00:00]} 3. Nf3 {[%emt 0:00:30]} cxd4 {[%emt 0:00:20]} 4. Nxd4 {[%emt 0:00:06]} e5 {[%emt 0:02:22]} 5. Nb5 {[%emt 0:00:23]} d5 {[%emt 0:00:09]} 6. cxd5 {[%emt 0:00:10]} Bc5 {[%emt 0:00:07]} 7. N5c3 {[%emt 0:01:12]} O-O {[%emt 0:01:14]} 8. e3 {[%emt 0:00:44]} e4 {[%emt 0:00:49]} 9. Be2 {[%emt 0:00:32]} Bf5 {[%emt 0:01:35]} 10. Nd2 {[%emt 0:02:25]} Re8 {[%emt 0:02:56]} 11. Nb3 {[%emt 0:06:25]} Bb6 {[%emt 0:03:49]} 12. O-O {[%emt 0:08:21]} Nbd7 {[%emt 0:07:03]} 13. Nd4 {[%emt 0:01:08]} Bg6 {[%emt 0:01:02]} 14. f4 {[%emt 0:00:41]} exf3 {[%emt 0:02:53]} 15. gxf3 {[%emt 0:01:42]} Rc8 {[%emt 0:05:24]} 16. e4 {[%emt 0:04:02]} Bxe4 {[%emt 0:12:03]} 17. fxe4 {[%emt 0:00:40]} Nxe4 {[%emt 0:00:12]} 18. Bf3 {[%emt 0:07:35]} Qh4 {[%emt 0:12:11]} 19. Nxe4 {[%emt 0:03:43]} Rxe4 {[%emt 0:00:13]} 20. Bxe4 {[%emt 0:00:08]} Qxe4 {[%emt 0:00:05]} 21. Rf4 {[%emt 0:00:27]} Qe5 {[%emt 0:04:13]} 22. Kf1 {[%emt 0:04:52]} Rxc1 {[%emt 0:01:44]} 23. Qxc1 {[%emt 0:00:10]} Bxd4 {[%emt 0:00:10]} 24. Qc8+ {[%emt 0:00:09]} Nf8 {[%emt 0:00:05]} 25. Qf5 {[%emt 0:00:11]} 1-0

[Event "XLV Sevilla Open 2020"]
[Site "Sevilla"]
[Date "2020.01.10"]
[Round "1.9"]
[White "Munoz Mesa, Miguel Angel"]
[Black "Matamoros Franco, Carlos S."]
[Result "0-1"]
[ECO "A05"]
[WhiteElo "1771"]
[BlackElo "2487"]
[Annotator "ChessBase"]
[PlyCount "60"]
[EventDate "2020.01.05"]
[EventType "swiss"]
[EventCountry "ESP"]
[SourceTitle "playchess.com"]
[Source "ChessBase"]
[SourceQuality "1"]
[TimeControl "5400+30"]

1. Nf3 {[%emt 0:00:00]} Nf6 {[%emt 0:00:00]} 2. Nc3 {[%emt 0:00:00]} d5 {[%emt 0:00:00]} 3. d4 {[%emt 0:00:07]} e6 {[%emt 0:00:54]} 4. a3 {[%emt 0:00:12]} c5 {[%emt 0:00:16]} 5. Bg5 {[%emt 0:00:36]} h6 {[%emt 0:00:40]} 6. Bh4 {[%emt 0:00:22]} cxd4 {[%emt 0:00:18]} 7. Nxd4 {[%emt 0:01:35]} e5 {[%emt 0:02:37]} 8. Bxf6 {[%emt 0:00:37]} gxf6 {[%emt 0:00:10]} 9. Nb3 {[%emt 0:02:57]} d4 {[%emt 0:00:20]} 10. Ne4 {[%emt 0:03:03]} f5 {[%emt 0:00:38]} 11. Ng3 {[%emt 0:00:21]} a5 {[%emt 0:01:56]} 12. e4 {[%emt 0:04:55]} dxe3 {[%emt 0:06:38]} 13. Qxd8+ {[%emt 0:00:21]} Kxd8 {[%emt 0:00:04]} 14. O-O-O+ {[%emt 0:00:23]} Kc7 {[%emt 0:00:07]} 15. fxe3 {[%emt 0:00:16]} Be6 {[%emt 0:06:27]} 16. Nd2 {[%emt 0:04:20]} h5 {[%emt 0:03:48]} 17. e4 {[%emt 0:00:37]} f4 {[%emt 0:03:44]} 18. Nf5 {[%emt 0:03:24]} Nd7 {[%emt 0:00:22]} 19. Bc4 {[%emt 0:03:49]} Nf6 {[%emt 0:01:55]} 20. Bxe6 {[%emt 0:03:47]} fxe6 {[%emt 0:00:02]} 21. Nh4 {[%emt 0:00:20]} Ng4 {[%emt 0:04:11]} 22. Rde1 {[%emt 0:00:31]} Bc5 {[%emt 0:02:04]} 23. Nhf3 {[%emt 0:02:06]} Rhg8 {[%emt 0:01:04]} 24. g3 {[%emt 0:06:00]} Raf8 {[%emt 0:04:27]} 25. gxf4 {[%emt 0:01:29]} exf4 {[%emt 0:01:27]} 26. e5 {[%emt 0:02:27]} Be3 {[%emt 0:01:04]} 27. Rhf1 {[%emt 0:01:04]} Rf5 {[%emt 0:02:24]} 28. Kd1 {[%emt 0:05:14]} Rd8 {[%emt 0:02:42]} 29. Ke2 {[%emt 0:03:34]} Bxd2 {[%emt 0:00:18]} 30. Nxd2 {[%emt 0:00:28]} Rxe5+ {[%emt 0:00:03]} 0-1

[Event "XLV Sevilla Open 2020"]
[Site "Sevilla"]
[Date "2020.01.11"]
[Round "2.12"]
[White "Perez Bolanos, Joel"]
[Black "Alsina Leal, Daniel"]
[Result "0-1"]
[ECO "B23"]
[WhiteElo "1965"]
[BlackElo "2465"]
[Annotator "ChessBase"]
[PlyCount "72"]
[EventDate "2020.01.05"]
[EventType "swiss"]
[EventCountry "ESP"]
[SourceTitle "playchess.com"]
[Source "ChessBase"]
[SourceQuality "1"]
[TimeControl "5400+30"]

1. e4 {[%emt 0:00:00]} c5 {[%emt 0:00:00]} 2. Nc3 {[%emt 0:02:10]} d6 {[%emt 0:01:32]} 3. f4 {[%emt 0:02:24]} Nc6 {[%emt 0:00:17]} 4. Bb5 {[%emt 0:03:16]} Bd7 {[%emt 0:00:58]} 5. Nf3 {[%emt 0:01:48]} g6 {[%emt 0:02:29]} 6. O-O {[%emt 0:04:14]} Bg7 {[%emt 0:00:08]} 7. d3 {[%emt 0:02:30]} Nf6 {[%emt 0:05:49]} 8. Bxc6 {[%emt 0:08:36]} Bxc6 {[%emt 0:00:29]} 9. Qe1 {[%emt 0:00:56]} Qd7 {[%emt 0:06:19]} 10. f5 {[%emt 0:06:29]} gxf5 {[%emt 0:05:38]} 11. exf5 {[%emt 0:13:37]} Qxf5 {[%emt 0:22:12]} 12. Nd4 {[%emt 0:06:58]} Qd7 {[%emt 0:08:44]} 13. Nxc6 {[%emt 0:00:45]} Qxc6 {[%emt 0:02:14]} 14. Bg5 {[%emt 0:02:50]} Rg8 {[%emt 0:02:03]} 15. Qe2 {[%emt 0:06:05]} Kd7 {[%emt 0:06:05]} 16. Rae1 {[%emt 0:03:47]} Rae8 {[%emt 0:00:08]} 17. Bxf6 {[%emt 0:05:30]} Bxf6 {[%emt 0:03:48]} 18. Ne4 {[%emt 0:01:31]} Bd4+ {[%emt 0:03:54]} 19. Kh1 {[%emt 0:00:28]} d5 {[%emt 0:07:26]} 20. Nd2 {[%emt 0:08:23]} Bf6 {[%emt 0:00:58]} 21. c4 {[%emt 0:02:09]} dxc4 {[%emt 0:03:10]} 22. dxc4 {[%emt 0:01:40]} Rg7 {[%emt 0:03:34]} 23. Rxf6 {[%emt 0:05:53]} Qxf6 {[%emt 0:00:53]} 24. Ne4 {[%emt 0:00:08]} Qc6 {[%emt 0:01:37]} 25. Rd1+ {[%emt 0:00:16]} Kc8 {[%emt 0:01:39]} 26. Rd5 {[%emt 0:02:48]} b6 {[%emt 0:01:20]} 27. Qf3 {[%emt 0:00:34]} Rd8 {[%emt 0:03:42]} 28. Nc3 {[%emt 0:03:44]} Rxd5 {[%emt 0:00:34]} 29. Nxd5 {[%emt 0:00:08]} Kb7 {[%emt 0:01:14]} 30. Qf4 {[%emt 0:01:44]} e6 {[%emt 0:01:25]} 31. Qf6 {[%emt 0:00:06]} exd5 {[%emt 0:00:57]} 32. Qxg7 {[%emt 0:00:06]} Qg6 {[%emt 0:00:28]} 33. Qxg6 {[%emt 0:00:14]} fxg6 {[%emt 0:00:09]} 34. cxd5 {[%emt 0:00:05]} Kc7 {[%emt 0:00:05]} 35. Kg1 {[%emt 0:00:05]} Kd6 {[%emt 0:00:04]} 36. Kf2 {[%emt 0:00:04]} Kxd5 {[%emt 0:00:12]} 0-1

[Event "XLV Sevilla Open 2020"]
[Site "Sevilla"]
[Date "2020.01.11"]
[Round "2.13"]
[White "Ravi, Teja S."]
[Black "Herrera Oliva, Enrique"]
[Result "1-0"]
[ECO "A81"]
[WhiteElo "2464"]
[BlackElo "1961"]
[Annotator "ChessBase"]
[PlyCount "53"]
[EventDate "2020.01.05"]
[EventType "swiss"]
[EventCountry "ESP"]
[SourceTitle "playchess.com"]
[Source "ChessBase"]
[SourceQuality "1"]
[TimeControl "5400+30"]

1. d4 {[%emt 0:00:11]} f5 {[%emt 0:00:00]} 2. g3 {[%emt 0:00:19]} Nf6 {[%emt 0:00:00]} 3. Bg2 {[%emt 0:00:07]} g6 {[%emt 0:01:47]} 4. Nf3 {[%emt 0:02:48]} Bg7 {[%emt 0:00:48]} 5. O-O {[%emt 0:00:08]} O-O {[%emt 0:00:57]} 6. b3 {[%emt 0:00:05]} e6 {[%emt 0:02:13]} 7. Bb2 {[%emt 0:01:09]} d6 {[%emt 0:01:27]} 8. c4 {[%emt 0:02:18]} Qe7 {[%emt 0:05:38]} 9. Nc3 {[%emt 0:02:24]} a5 {[%emt 0:10:01]} 10. Re1 {[%emt 0:04:27]} Ne4 {[%emt 0:00:48]} 11. Qd3 {[%emt 0:15:36]} Nxc3 {[%emt 0:19:37]} 12. Bxc3 {[%emt 0:00:27]} Nc6 {[%emt 0:01:15]} 13. e4 {[%emt 0:07:56]} f4 {[%emt 0:13:15]} 14. e5 {[%emt 0:01:31]} g5 {[%emt 0:10:13]} 15. h4 {[%emt 0:03:13]} fxg3 {[%emt 0:05:33]} 16. fxg3 {[%emt 0:01:45]} gxh4 {[%emt 0:00:18]} 17. gxh4 {[%emt 0:08:38]} dxe5 {[%emt 0:00:26]} 18. Ng5 {[%emt 0:10:31]} Rf5 {[%emt 0:01:08]} 19. Bh3 {[%emt 0:12:00]} Rxg5+ {[%emt 0:00:25]} 20. hxg5 {[%emt 0:00:07]} Qxg5+ {[%emt 0:00:14]} 21. Kh1 {[%emt 0:00:16]} exd4 {[%emt 0:02:19]} 22. Rg1 {[%emt 0:00:32]} Qh4 {[%emt 0:02:31]} 23. Rg4 {[%emt 0:08:56]} Ne5 {[%emt 0:05:13]} 24. Rxg7+ {[%emt 0:00:27]} Kh8 {[%emt 0:09:17]} 25. Rag1 {[%emt 0:08:54]} Bd7 {[%emt 0:02:03]} 26. Bxd4 {[%emt 0:00:32]} Bc6+ {[%emt 0:00:16]} 27. R7g2 {[%emt 0:01:06]} 1-0

[Event "XLV Sevilla Open 2020"]
[Site "Sevilla"]
[Date "2020.01.11"]
[Round "2.14"]
[White "Skalli, Taoufik"]
[Black "Das, Arghyadip"]
[Result "0-1"]
[ECO "B28"]
[WhiteElo "1961"]
[BlackElo "2451"]
[Annotator "ChessBase"]
[PlyCount "56"]
[EventDate "2020.01.05"]
[EventType "swiss"]
[EventCountry "ESP"]
[SourceTitle "playchess.com"]
[Source "ChessBase"]
[SourceQuality "1"]
[TimeControl "5400+30"]

1. e4 c5 2. Nf3 a6 3. d4 cxd4 4. Nxd4 Nf6 5. Nc3 e5 6. Nf3 Bb4 7. Be2 Nxe4 8. O-O Bxc3 9. bxc3 d6 10. Ba3 Qc7 11. c4 Nd7 12. Re1 Ndc5 13. Bd3 Nf6 14. Qd2 O-O 15. Nh4 Nh5 16. Qg5 Nf4 17. Rad1 f6 18. Qg3 Kh8 19. Bxc5 dxc5 20. Be4 Be6 21. Bd5 Rad8 22. Qf3 Qf7 23. Bxb7 Bxc4 24. Rxd8 Rxd8 25. Rd1 Rxd1+ 26. Qxd1 Qxb7 27. Qd8+ Bg8 28. g3 Qb1+ 0-1

[Event "XLV Sevilla Open 2020"]
[Site "Sevilla"]
[Date "2020.01.11"]
[Round "2.15"]
[White "Panjwani, Raja"]
[Black "Manukonda, Arun"]
[Result "1-0"]
[ECO "D11"]
[WhiteElo "2444"]
[BlackElo "1959"]
[Annotator "ChessBase"]
[PlyCount "71"]
[EventDate "2020.01.05"]
[EventType "swiss"]
[EventCountry "ESP"]
[SourceTitle "playchess.com"]
[Source "ChessBase"]
[SourceQuality "1"]
[TimeControl "5400+30"]

1. d4 {[%emt 0:00:00]} d5 {[%emt 0:00:00]} 2. c4 {[%emt 0:00:00]} c6 {[%emt 0:00:00]} 3. Nf3 {[%emt 0:00:02]} Nf6 {[%emt 0:00:00]} 4. Qb3 {[%emt 0:00:21]} Qb6 {[%emt 0:00:12]} 5. Nc3 {[%emt 0:02:42]} Bf5 {[%emt 0:08:08]} 6. cxd5 {[%emt 0:09:16]} Qxb3 {[%emt 0:01:13]} 7. axb3 {[%emt 0:00:12]} Nxd5 {[%emt 0:00:13]} 8. e3 {[%emt 0:02:41]} Nb4 {[%emt 0:03:19]} 9. Kd2 {[%emt 0:03:14]} e6 {[%emt 0:10:42]} 10. e4 {[%emt 0:09:03]} Bg6 {[%emt 0:00:53]} 11. h4 {[%emt 0:01:56]} h6 {[%emt 0:02:23]} 12. Ne5 {[%emt 0:01:24]} Bh7 {[%emt 0:00:02]} 13. f3 {[%emt 0:12:45]} Bd6 {[%emt 0:06:49]} 14. Nc4 {[%emt 0:01:48]} Bc7 {[%emt 0:06:10]} 15. Na2 {[%emt 0:07:41]} N8a6 {[%emt 0:03:01]} 16. Kc3 {[%emt 0:06:23]} c5 {[%emt 0:13:11]} 17. dxc5 {[%emt 0:01:00]} Nxa2+ {[%emt 0:03:04]} 18. Rxa2 {[%emt 0:00:15]} Nxc5 {[%emt 0:00:02]} 19. Be3 {[%emt 0:01:19]} b6 {[%emt 0:00:39]} 20. Bxc5 {[%emt 0:00:58]} bxc5 {[%emt 0:00:02]} 21. Bd3 {[%emt 0:03:47]} O-O {[%emt 0:01:23]} 22. Rha1 {[%emt 0:02:13]} Bg3 {[%emt 0:00:36]} 23. h5 {[%emt 0:00:21]} f5 {[%emt 0:00:49]} 24. Rxa7 {[%emt 0:04:57]} Rxa7 {[%emt 0:01:07]} 25. Rxa7 {[%emt 0:00:06]} fxe4 {[%emt 0:00:06]} 26. fxe4 {[%emt 0:01:33]} Kh8 {[%emt 0:07:49]} 27. Re7 {[%emt 0:04:37]} Bg8 {[%emt 0:08:09]} 28. e5 {[%emt 0:01:35]} Bh4 {[%emt 0:01:19]} 29. Rc7 {[%emt 0:00:48]} Bf2 {[%emt 0:00:45]} 30. Bg6 {[%emt 0:00:47]} Rd8 {[%emt 0:02:42]} 31. Kc2 {[%emt 0:00:20]} Bd4 {[%emt 0:00:44]} 32. Rc6 {[%emt 0:01:54]} Rf8 {[%emt 0:00:29]} 33. Kd3 {[%emt 0:00:41]} Rb8 {[%emt 0:01:41]} 34. Ke4 {[%emt 0:02:09]} Rxb3 {[%emt 0:01:39]} 35. Rc8 {[%emt 0:00:10]} Rg3 {[%emt 0:03:31]} 36. Nd6 {[%emt 0:03:47]} 1-0

[Event "XLV Sevilla Open 2020"]
[Site "Sevilla"]
[Date "2020.01.11"]
[Round "2.16"]
[White "Hurtado Rueda, Manuel"]
[Black "Chen, Qi b"]
[Result "0-1"]
[ECO "B50"]
[WhiteElo "1955"]
[BlackElo "2432"]
[Annotator "ChessBase"]
[PlyCount "76"]
[EventDate "2020.01.05"]
[EventType "swiss"]
[EventCountry "ESP"]
[SourceTitle "playchess.com"]
[Source "ChessBase"]
[SourceQuality "1"]
[TimeControl "5400+30"]

1. e4 {[%emt 0:06:03]} c5 {[%emt 0:00:00]} 2. Nf3 {[%emt 0:00:19]} d6 {[%emt 0:00:00]} 3. Bc4 {[%emt 0:00:19]} Nf6 {[%emt 0:01:47]} 4. Qe2 {[%emt 0:04:13]} Nc6 {[%emt 0:06:32]} 5. h3 {[%emt 0:00:23]} e6 {[%emt 0:01:52]} 6. O-O {[%emt 0:06:37]} a6 {[%emt 0:03:00]} 7. a4 {[%emt 0:00:11]} Be7 {[%emt 0:00:26]} 8. d4 {[%emt 0:07:29]} cxd4 {[%emt 0:02:12]} 9. Rd1 {[%emt 0:02:26]} Qb6 {[%emt 0:07:50]} 10. c3 {[%emt 0:00:33]} dxc3 {[%emt 0:00:55]} 11. Nxc3 {[%emt 0:00:23]} O-O {[%emt 0:00:12]} 12. Be3 {[%emt 0:01:13]} Qa5 {[%emt 0:01:23]} 13. Bf4 {[%emt 0:04:46]} Rd8 {[%emt 0:01:04]} 14. Rac1 {[%emt 0:16:29]} Ne5 {[%emt 0:05:50]} 15. Nd2 {[%emt 0:09:23]} Bd7 {[%emt 0:01:44]} 16. Nb3 {[%emt 0:28:38]} Qb4 {[%emt 0:00:12]} 17. Rd4 {[%emt 0:01:35]} Nxc4 {[%emt 0:01:46]} 18. Qxc4 {[%emt 0:04:04]} Qxc4 {[%emt 0:00:04]} 19. Rxc4 {[%emt 0:00:01]} b5 {[%emt 0:01:04]} 20. axb5 {[%emt 0:00:17]} axb5 {[%emt 0:00:03]} 21. Rc7 {[%emt 0:00:28]} b4 {[%emt 0:00:34]} 22. Ne2 {[%emt 0:01:12]} Nxe4 {[%emt 0:00:11]} 23. f3 {[%emt 0:00:31]} Nf6 {[%emt 0:00:11]} 24. Rb7 {[%emt 0:00:36]} Nd5 {[%emt 0:00:23]} 25. Bd2 {[%emt 0:00:47]} Rab8 {[%emt 0:00:28]} 26. Ra7 {[%emt 0:00:20]} Ra8 {[%emt 0:00:45]} 27. Rb7 {[%emt 0:00:02]} Bc8 {[%emt 0:00:13]} 28. Rxb4 {[%emt 0:04:10]} Nxb4 {[%emt 0:00:05]} 29. Bxb4 {[%emt 0:00:02]} Bd7 {[%emt 0:01:16]} 30. Rd1 {[%emt 0:00:40]} Rab8 {[%emt 0:00:38]} 31. Ba5 {[%emt 0:00:48]} Rxb3 {[%emt 0:00:16]} 32. Bxd8 {[%emt 0:00:08]} Bxd8 {[%emt 0:00:06]} 33. Rxd6 {[%emt 0:00:11]} Rb7 {[%emt 0:00:03]} 34. Nc3 {[%emt 0:00:22]} Kf8 {[%emt 0:00:24]} 35. b3 {[%emt 0:00:25]} Ke7 {[%emt 0:00:35]} 36. Rd3 {[%emt 0:00:56]} Bc6 {[%emt 0:00:03]} 37. Ne4 {[%emt 0:00:14]} Bxe4 {[%emt 0:00:08]} 38. fxe4 {[%emt 0:00:03]} Rb4 {[%emt 0:00:03]} 0-1

[Event "XLV Sevilla Open 2020"]
[Site "Sevilla"]
[Date "2020.01.11"]
[Round "2.17"]
[White "Pap, Misa"]
[Black "Gentes Benito, Mauricio"]
[Result "1-0"]
[ECO "B43"]
[WhiteElo "2427"]
[BlackElo "1951"]
[Annotator "ChessBase"]
[PlyCount "51"]
[EventDate "2020.01.05"]
[EventType "swiss"]
[EventCountry "ESP"]
[SourceTitle "playchess.com"]
[Source "ChessBase"]
[SourceQuality "1"]
[TimeControl "5400+30"]

1. e4 c5 2. Nf3 e6 3. d4 cxd4 4. Nxd4 a6 5. Nc3 Qc7 6. Qf3 Nc6 7. Be3 Nf6 8. O-O-O Ne5 9. Qg3 d6 10. f4 Neg4 11. Bg1 b5 12. a3 Bd7 13. h3 Nh6 14. Qf3 Rc8 15. Bd3 Be7 16. g4 e5 17. Nde2 Nhxg4 18. hxg4 Bxg4 19. Qg3 h5 20. Rd2 Qa5 21. fxe5 b4 22. axb4 Qa1+ 23. Nb1 Nd7 24. exd6 Bf6 25. Bd4 Bxe2 26. Bxe2 1-0

[Event "XLV Sevilla Open 2020"]
[Site "Sevilla"]
[Date "2020.01.15"]
[Round "6.15"]
[White "Corbalan Gomez, Juan Jose"]
[Black "Soumya, Swaminathan"]
[Result "1-0"]
[ECO "B66"]
[WhiteElo "2243"]
[BlackElo "2384"]
[Annotator "ChessBase"]
[PlyCount "87"]
[EventDate "2020.01.05"]
[EventType "swiss"]
[EventCountry "ESP"]
[SourceTitle "playchess.com"]
[Source "ChessBase"]
[SourceQuality "1"]
[TimeControl "5400+30"]

1. e4 {[%emt 0:07:24]} c5 {[%emt 0:00:00]} 2. Nf3 {[%emt 0:00:03]} d6 {[%emt 0:00:00]} 3. d4 {[%emt 0:00:03]} cxd4 {[%emt 0:00:01]} 4. Nxd4 {[%emt 0:00:02]} Nf6 {[%emt 0:00:08]} 5. Nc3 {[%emt 0:00:02]} Nc6 {[%emt 0:00:07]} 6. Bg5 {[%emt 0:00:05]} e6 {[%emt 0:00:19]} 7. Qd2 {[%emt 0:00:02]} a6 {[%emt 0:00:20]} 8. f3 {[%emt 0:00:30]} h6 {[%emt 0:07:59]} 9. Be3 {[%emt 0:00:35]} d5 {[%emt 0:12:29]} 10. exd5 {[%emt 0:00:19]} Nxd5 {[%emt 0:00:04]} 11. Nxd5 {[%emt 0:01:01]} Qxd5 {[%emt 0:00:26]} 12. Nxc6 {[%emt 0:03:16]} Qxd2+ {[%emt 0:02:34]} 13. Bxd2 {[%emt 0:01:16]} bxc6 {[%emt 0:00:03]} 14. Bd3 {[%emt 0:00:54]} Bd6 {[%emt 0:14:52]} 15. O-O-O {[%emt 0:00:42]} Bb7 {[%emt 0:06:54]} 16. Bc3 {[%emt 0:03:26]} Bf4+ {[%emt 0:02:57]} 17. Kb1 {[%emt 0:02:08]} O-O {[%emt 0:03:20]} 18. g3 {[%emt 0:03:02]} Bc7 {[%emt 0:00:27]} 19. Be2 {[%emt 0:07:38]} c5 {[%emt 0:03:46]} 20. Rhf1 {[%emt 0:13:39]} Bd5 {[%emt 0:08:29]} 21. f4 {[%emt 0:00:36]} Rfd8 {[%emt 0:01:29]} 22. Rd2 {[%emt 0:17:51]} c4 {[%emt 0:05:02]} 23. Bf3 {[%emt 0:04:05]} Bxf3 {[%emt 0:14:24]} 24. Rxf3 {[%emt 0:00:02]} e5 {[%emt 0:02:46]} 25. fxe5 {[%emt 0:01:31]} Bxe5 {[%emt 0:01:07]} 26. Kc1 {[%emt 0:01:08]} Bc7 {[%emt 0:02:00]} 27. Rd4 {[%emt 0:13:14]} Rxd4 {[%emt 0:00:47]} 28. Bxd4 {[%emt 0:00:01]} Rd8 {[%emt 0:00:14]} 29. c3 {[%emt 0:01:04]} Rd5 {[%emt 0:02:34]} 30. Re3 {[%emt 0:00:40]} Kf8 {[%emt 0:00:25]} 31. b3 {[%emt 0:04:04]} cxb3 {[%emt 0:00:24]} 32. axb3 {[%emt 0:00:01]} Bd6 {[%emt 0:02:33]} 33. Kc2 {[%emt 0:00:27]} f5 {[%emt 0:01:36]} 34. Kd3 {[%emt 0:00:22]} Kf7 {[%emt 0:00:32]} 35. b4 {[%emt 0:02:38]} Rb5 {[%emt 0:03:09]} 36. Re2 {[%emt 0:00:39]} Rb8 {[%emt 0:02:23]} 37. Ra2 {[%emt 0:00:16]} Ra8 {[%emt 0:00:04]} 38. b5 {[%emt 0:00:19]} a5 {[%emt 0:00:14]} 39. c4 {[%emt 0:00:01]} Bb4 {[%emt 0:00:40]} 40. c5 {[%emt 0:00:13]} g5 {[%emt 0:01:24]} 41. b6 {[%emt 0:00:34]} Ke6 {[%emt 0:00:36]} 42. Kc4 {[%emt 0:00:04]} Kd7 {[%emt 0:00:27]} 43. Kb5 {[%emt 0:00:03]} Rd8 {[%emt 0:00:46]} 44. c6+ {[%emt 0:00:24]} 1-0

[Event "XLV Sevilla Open 2020"]
[Site "Sevilla"]
[Date "2020.01.16"]
[Round "7.10"]
[White "Das, Arghyadip"]
[Black "Corbalan Gomez, Juan Jose"]
[Result "1-0"]
[ECO "B38"]
[WhiteElo "2451"]
[BlackElo "2243"]
[Annotator "RC"]
[PlyCount "115"]
[EventDate "2020.01.05"]
[EventType "swiss"]
[EventCountry "ESP"]
[SourceTitle "playchess.com"]
[Source "ChessBase"]
[SourceQuality "1"]
[TimeControl "5400+30"]

1. e4 c5 2. Nf3 Nc6 3. d4 cxd4 4. Nxd4 g6 5. c4 Bg7 6. Be3 Nf6 7. Nc3 O-O 8. Be2 d6 9. f3 Nxd4 10. Bxd4 Be6 11. O-O Qa5 12. Kh1 Rfc8 13. b3 Nd7 14. f4 Bxd4 15. Qxd4 f6 16. f5 Bf7 17. fxg6 hxg6 18. Bg4 Rd8 19. Bxd7 Rxd7 20. Nd5 Qc5 21. Qc3 Bxd5 22. exd5 Qc8 23. Rae1 Qf8 24. Qh3 Rc7 25. Re4 Qg7 26. Rfe1 b6 27. a4 Rf8 28. Qe3 Rf7 29. h4 Kh7 30. Qh3 Qh6 31. h5 Kg7 32. hxg6 Qxh3+ 33. gxh3 Kxg6 34. Rg4+ Kh7 35. Reg1 Kh8 36. Rg8+ Kh7 37. Kh2 Rb7 38. R8g4 Kh8 39. Kg3 Rg7 40. Kf4 Rxg4+ 41. Rxg4 Kh7 42. Kf5 Rc7 43. Ke6 Rb7 44. Kf7 Kh6 45. Rg8 Kh5 46. Ke6 Kh6 47. Re8 Kg6 48. Rxe7 Rxe7+ 49. Kxe7 f5 50. Kxd6 f4 51. Kc7 f3 52. d6 f2 53. d7 f1=Q 54. d8=Q Qxh3 55. Qd6+ Kh5 56. b4 Qb3 57. c5 Qxa4 58. c6 1-0

[Event "XLV Sevilla Open 2020"]
[Site "Sevilla"]
[Date "2020.01.16"]
[Round "7.16"]
[White "Gu, Tianlu"]
[Black "Pozo Prior, Jose Antonio"]
[Result "1-0"]
[ECO "B38"]
[WhiteElo "2255"]
[BlackElo "2016"]
[Annotator "RC"]
[PlyCount "58"]
[EventDate "2020.01.05"]
[EventType "swiss"]
[EventCountry "ESP"]
[SourceTitle "playchess.com"]
[Source "ChessBase"]
[SourceQuality "1"]
[TimeControl "5400+30"]

1. e4 {[%emt 0:01:05]} c5 {[%emt 0:00:00]} 2. Nf3 {[%emt 0:00:13]} g6 {[%emt 0:00:00]} 3. c4 {[%emt 0:00:49]} Bg7 {[%emt 0:00:09]} 4. d4 {[%emt 0:00:21]} cxd4 {[%emt 0:03:50]} 5. Nxd4 {[%emt 0:00:08]} Nc6 {[%emt 0:00:09]} 6. Be3 {[%emt 0:00:10]} Nf6 7. Nc3 O-O 8. Be2 d6 9. O-O Bd7 10. h3 Rc8 11. f4 Nxd4 12. Bxd4 Bc6 13. Qc2 b5 14. cxb5 Bxe4 15. Qa4 Bb7 16. Qxa7 Qd7 17. Qa4 Ne8 18. Rad1 Nc7 19. Bxg7 Kxg7 20. Qd4+ Kg8 21. a4 Ne6 22. Qe3 Qc7 23. Bg4 Qc4 24. a5 Qb3 25. Rd2 Ra8 26. a6 Bc8 27. Bf3 Bd7 28. Bxa8 Rxa8 29. Qe4 Bc8 1-0